[Event "*** SCC Grand Prix: Titled Tuesday Blitz"]
[Site "Chess.com"]
[Date "2020.06.23"]
[Round "6"]
[White "Mikhal867"]
[Black "zmeeed67"]
[Result "1-0"]
[WhiteElo "2330"]
[BlackElo "2441"]
[TimeControl "180+1"]
[EndTime "11:06:52 PDT"]
[Termination "Mikhal867 won on time"]

1. e4 {[%clk 0:02:39.7]} 1... Nc6 {[%clk 0:02:58.8]} 2. Nf3 {[%clk 0:02:38.2]}
2... d6 {[%clk 0:02:59]} 3. d4 {[%clk 0:02:37.3]} 3... Nf6 {[%clk 0:02:59.1]} 4.
Nc3 {[%clk 0:02:36.1]} 4... Bg4 {[%clk 0:02:59.3]} 5. Be2 {[%clk 0:02:33.6]}
5... g6 {[%clk 0:02:59.2]} 6. O-O {[%clk 0:02:32.2]} 6... Bg7 {[%clk 0:02:59.2]}
7. Be3 {[%clk 0:02:31.5]} 7... O-O {[%clk 0:02:58.8]} 8. Qd2 {[%clk 0:02:29.3]}
8... Nd7 {[%clk 0:02:45.6]} 9. d5 {[%clk 0:02:26.1]} 9... Bxf3 {[%clk
0:02:27.8]} 10. Bxf3 {[%clk 0:02:19.4]} 10... Ncb8 {[%clk 0:02:24.7]} 11. Bd4
{[%clk 0:02:18]} 11... Bxd4 {[%clk 0:02:21.2]} 12. Qxd4 {[%clk 0:02:17.3]} 12...
c6 {[%clk 0:02:20.8]} 13. Rfe1 {[%clk 0:02:11.8]} 13... cxd5 {[%clk 0:02:19.1]}
14. exd5 {[%clk 0:02:10.9]} 14... Re8 {[%clk 0:02:19]} 15. g3 {[%clk 0:02:10]}
15... Na6 {[%clk 0:01:58.8]} 16. Nb5 {[%clk 0:01:57.2]} 16... Nc7 {[%clk
0:01:27.7]} 17. a4 {[%clk 0:01:56.2]} 17... a6 {[%clk 0:01:20.7]} 18. Nc3 {[%clk
0:01:55.7]} 18... Rc8 {[%clk 0:01:16.8]} 19. a5 {[%clk 0:01:50.6]} 19... Nb5
{[%clk 0:00:58.1]} 20. Nxb5 {[%clk 0:01:47.3]} 20... axb5 {[%clk 0:00:59]} 21.
c3 {[%clk 0:01:45.8]} 21... Rc4 {[%clk 0:00:54.9]} 22. Qd2 {[%clk 0:01:45.4]}
22... Ra4 {[%clk 0:00:42.1]} 23. b4 {[%clk 0:01:39.6]} 23... Rxa1 {[%clk
0:00:27.6]} 24. Rxa1 {[%clk 0:01:38.1]} 24... Qc7 {[%clk 0:00:28.5]} 25. Be2
{[%clk 0:01:35.8]} 25... Ne5 {[%clk 0:00:23.8]} 26. Kg2 {[%clk 0:01:26.1]} 26...
Rc8 {[%clk 0:00:22.5]} 27. Rc1 {[%clk 0:01:14.6]} 27... Nc4 {[%clk 0:00:21.7]}
28. Qd4 {[%clk 0:01:14.3]} 28... Ra8 {[%clk 0:00:07.6]} 29. Bxc4 {[%clk
0:01:10]} 29... Qxc4 {[%clk 0:00:05.7]} 30. Qxc4 {[%clk 0:01:09.7]} 30... bxc4
{[%clk 0:00:06.6]} 31. Re1 {[%clk 0:01:09.7]} 31... Kf8 {[%clk 0:00:06]} 32. Re4
{[%clk 0:01:09.5]} 32... Rc8 {[%clk 0:00:06.1]} 33. Kf3 {[%clk 0:01:07.7]} 33...
Ke8 {[%clk 0:00:06.4]} 34. Ke3 {[%clk 0:01:06.5]} 34... Kd7 {[%clk 0:00:06.6]}
35. Kd4 {[%clk 0:01:05.7]} 35... e5+ {[%clk 0:00:03.5]} 36. dxe6+ {[%clk
0:01:03.1]} 36... fxe6 {[%clk 0:00:04.4]} 37. Rh4 {[%clk 0:01:02.3]} 37... h5
{[%clk 0:00:03.7]} 38. g4 {[%clk 0:01:00.4]} 38... Rf8 {[%clk 0:00:01.8]} 39.
gxh5 {[%clk 0:00:57.3]} 39... g5 {[%clk 0:00:02.3]} 40. Rg4 {[%clk 0:00:53.8]}
40... Rxf2 {[%clk 0:00:02.7]} 41. Rxg5 {[%clk 0:00:51.7]} 41... Rxh2 {[%clk
0:00:03.2]} 42. Kxc4 {[%clk 0:00:51.2]} 42... d5+ {[%clk 0:00:02.1]} 43. Kc5
{[%clk 0:00:50.2]} 43... Rh3 {[%clk 0:00:02.5]} 44. Rg7+ {[%clk 0:00:49.9]}
44... Kc8 {[%clk 0:00:02.1]} 45. Kd6 {[%clk 0:00:45.4]} 45... Kb8 {[%clk
0:00:02.4]} 46. Rg8+ {[%clk 0:00:41.1]} 46... Ka7 {[%clk 0:00:02.4]} 47. Rh8
{[%clk 0:00:41.1]} 47... Rxc3 {[%clk 0:00:02.2]} 48. Kxe6 {[%clk 0:00:41]} 48...
d4 {[%clk 0:00:02.6]} 49. h6 {[%clk 0:00:39.3]} 49... Rh3 {[%clk 0:00:02.8]} 50.
Kf5 {[%clk 0:00:35.6]} 50... d3 {[%clk 0:00:02.4]} 51. Kg5 {[%clk 0:00:32.3]}
51... Ka6 {[%clk 0:00:01.2]} 52. Rd8 {[%clk 0:00:31.1]} 52... Kb5 {[%clk
0:00:01.4]} 53. Rd4 {[%clk 0:00:29]} 1-0

[Event "*** SCC Grand Prix: Titled Tuesday Blitz"]
[Site "Chess.com"]
[Date "2020.06.23"]
[Round "6"]
[White "argentum049"]
[Black "tan275"]
[Result "0-1"]
[WhiteElo "2373"]
[BlackElo "2269"]
[TimeControl "180+1"]
[EndTime "11:06:53 PDT"]
[Termination "tan275 won on time"]

1. d4 {[%clk 0:03:00.9]} 1... d5 {[%clk 0:02:59.3]} 2. c4 {[%clk 0:02:59.6]}
2... e6 {[%clk 0:02:59.8]} 3. Nf3 {[%clk 0:02:58.8]} 3... Nf6 {[%clk 0:03:00.1]}
4. Nc3 {[%clk 0:02:58.5]} 4... Be7 {[%clk 0:03:00.5]} 5. Bg5 {[%clk 0:02:58.3]}
5... h6 {[%clk 0:03:00.2]} 6. Bxf6 {[%clk 0:02:58.2]} 6... Bxf6 {[%clk 0:03:00]}
7. Rc1 {[%clk 0:02:58.6]} 7... O-O {[%clk 0:02:57.4]} 8. Qc2 {[%clk 0:02:57.5]}
8... c6 {[%clk 0:02:53.5]} 9. e4 {[%clk 0:02:56.4]} 9... dxe4 {[%clk 0:02:51.6]}
10. Nxe4 {[%clk 0:02:55.5]} 10... Qa5+ {[%clk 0:02:50.2]} 11. Qc3 {[%clk
0:02:46.1]} 11... Qxc3+ {[%clk 0:02:42.7]} 12. Rxc3 {[%clk 0:02:44.9]} 12... Be7
{[%clk 0:02:42.3]} 13. Be2 {[%clk 0:02:42.5]} 13... Bb4 {[%clk 0:02:41.3]} 14.
O-O {[%clk 0:02:41.4]} 14... Bxc3 {[%clk 0:02:41.2]} 15. bxc3 {[%clk 0:02:39.3]}
15... Nd7 {[%clk 0:02:39.6]} 16. c5 {[%clk 0:02:39.2]} 16... Nf6 {[%clk
0:02:26.4]} 17. Nd6 {[%clk 0:02:36.8]} 17... Ne8 {[%clk 0:02:25.4]} 18. Ne5
{[%clk 0:02:33.7]} 18... Nxd6 {[%clk 0:02:12.9]} 19. cxd6 {[%clk 0:02:32.9]}
19... Rd8 {[%clk 0:02:13.3]} 20. Nc4 {[%clk 0:02:22.7]} 20... b5 {[%clk
0:02:05]} 21. Na5 {[%clk 0:02:11.6]} 21... Rxd6 {[%clk 0:02:02.3]} 22. Bf3
{[%clk 0:02:12.5]} 22... Ba6 {[%clk 0:01:30.2]} 23. Rb1 {[%clk 0:01:46.6]} 23...
Rc8 {[%clk 0:01:25.3]} 24. Nb3 {[%clk 0:01:46.5]} 24... b4 {[%clk 0:01:18.9]}
25. Nc5 {[%clk 0:01:44]} 25... Bc4 {[%clk 0:00:58.7]} 26. Rxb4 {[%clk
0:01:14.7]} 26... Bxa2 {[%clk 0:00:56.9]} 27. Rb7 {[%clk 0:00:46.8]} 27... Bd5
{[%clk 0:00:53.5]} 28. Bh5 {[%clk 0:00:45.5]} 28... g6 {[%clk 0:00:52.1]} 29.
Be2 {[%clk 0:00:45.3]} 29... a5 {[%clk 0:00:48]} 30. c4 {[%clk 0:00:44.4]} 30...
Bxc4 {[%clk 0:00:42.2]} 31. Bxc4 {[%clk 0:00:43.4]} 31... Rxd4 {[%clk
0:00:41.8]} 32. Be2 {[%clk 0:00:42.1]} 32... Rd2 {[%clk 0:00:37.8]} 33. Kf1
{[%clk 0:00:27.1]} 33... Rc2 {[%clk 0:00:31.4]} 34. Nd3 {[%clk 0:00:26.9]} 34...
a4 {[%clk 0:00:29.8]} 35. Ra7 {[%clk 0:00:25.6]} 35... Ra2 {[%clk 0:00:27]} 36.
f4 {[%clk 0:00:09.3]} 36... c5 {[%clk 0:00:26.6]} 37. Ne5 {[%clk 0:00:08.4]}
37... a3 {[%clk 0:00:24.3]} 38. Bc4 {[%clk 0:00:07]} 38... Ra1+ {[%clk 0:00:23]}
39. Ke2 {[%clk 0:00:06.8]} 39... Rf8 {[%clk 0:00:17.8]} 40. Nxf7 {[%clk
0:00:05.6]} 40... Rb8 {[%clk 0:00:13.2]} 41. Ne5 {[%clk 0:00:02.6]} 41... Rb2+
{[%clk 0:00:12.8]} 42. Kf3 {[%clk 0:00:02.8]} 42... a2 {[%clk 0:00:11]} 43.
Bxe6+ {[%clk 0:00:01.3]} 43... Kf8 {[%clk 0:00:10.8]} 0-1

[Event "*** SCC Grand Prix: Titled Tuesday Blitz"]
[Site "Chess.com"]
[Date "2020.06.23"]
[Round "6"]
[White "MateSchmate"]
[Black "Violord"]
[Result "1/2-1/2"]
[WhiteElo "2470"]
[BlackElo "2621"]
[TimeControl "180+1"]
[EndTime "11:06:56 PDT"]
[Termination "Game drawn by repetition"]

1. e4 {[%clk 0:03:00.9]} 1... g6 {[%clk 0:02:59.1]} 2. d4 {[%clk 0:02:58.1]}
2... Bg7 {[%clk 0:02:59.1]} 3. f4 {[%clk 0:02:58.2]} 3... d5 {[%clk 0:02:57.5]}
4. e5 {[%clk 0:02:57.7]} 4... c5 {[%clk 0:02:57.6]} 5. c3 {[%clk 0:02:57.5]}
5... Nc6 {[%clk 0:02:54.6]} 6. Nf3 {[%clk 0:02:57.1]} 6... Bg4 {[%clk 0:02:51]}
7. Be3 {[%clk 0:02:55.7]} 7... cxd4 {[%clk 0:02:48.6]} 8. cxd4 {[%clk
0:02:55.4]} 8... Nh6 {[%clk 0:02:49.2]} 9. Bd3 {[%clk 0:02:47.1]} 9... O-O
{[%clk 0:02:45.7]} 10. h3 {[%clk 0:02:46.2]} 10... Nf5 {[%clk 0:02:42.1]} 11.
Bxf5 {[%clk 0:02:20.8]} 11... Bxf5 {[%clk 0:02:41.4]} 12. Nc3 {[%clk 0:02:20.8]}
12... f6 {[%clk 0:02:35.1]} 13. O-O {[%clk 0:02:18.1]} 13... fxe5 {[%clk
0:02:27]} 14. Nxe5 {[%clk 0:02:14]} 14... Nxe5 {[%clk 0:02:12.7]} 15. fxe5
{[%clk 0:02:13]} 15... Qd7 {[%clk 0:02:12.1]} 16. Qb3 {[%clk 0:02:01.8]} 16...
e6 {[%clk 0:02:06.3]} 17. Nb5 {[%clk 0:01:50.5]} 17... Bc2 {[%clk 0:01:48.6]}
18. Qxc2 {[%clk 0:01:38.2]} 18... Qxb5 {[%clk 0:01:47.6]} 19. a4 {[%clk
0:01:38.5]} 19... Qb6 {[%clk 0:01:45]} 20. Rxf8+ {[%clk 0:01:32.7]} 20... Rxf8
{[%clk 0:01:43.4]} 21. Rf1 {[%clk 0:01:31.2]} 21... Rxf1+ {[%clk 0:01:32]} 22.
Kxf1 {[%clk 0:01:30.7]} 22... Qa6+ {[%clk 0:01:32.5]} 23. Kf2 {[%clk 0:01:25.4]}
23... Bf8 {[%clk 0:01:28.8]} 24. b3 {[%clk 0:01:20]} 24... Qc6 {[%clk
0:01:24.2]} 25. Qxc6 {[%clk 0:01:15.6]} 25... bxc6 {[%clk 0:01:23.7]} 26. Bd2
{[%clk 0:01:16.5]} 26... c5 {[%clk 0:01:22.3]} 27. Bc3 {[%clk 0:01:09.7]} 27...
Kf7 {[%clk 0:01:20.2]} 28. Ke2 {[%clk 0:01:06.3]} 28... Ke8 {[%clk 0:01:19]} 29.
Kd3 {[%clk 0:01:00]} 29... Kd7 {[%clk 0:01:17.2]} 30. dxc5 {[%clk 0:00:54.1]}
30... Bxc5 {[%clk 0:01:16]} 31. b4 {[%clk 0:00:54.7]} 31... Bg1 {[%clk
0:01:14.7]} 32. b5 {[%clk 0:00:54.9]} 32... Kc7 {[%clk 0:01:13.7]} 33. a5 {[%clk
0:00:53.9]} 33... Kb7 {[%clk 0:01:08]} 34. g4 {[%clk 0:00:52.1]} 34... Bc5
{[%clk 0:01:02.4]} 35. Bd4 {[%clk 0:00:46.8]} 35... Bb4 {[%clk 0:00:59.9]} 36.
Bc3 {[%clk 0:00:46.7]} 36... Be7 {[%clk 0:00:51.6]} 37. Bd4 {[%clk 0:00:44.5]}
37... Bd8 {[%clk 0:00:51.5]} 38. Bc3 {[%clk 0:00:41.4]} 38... Bc7 {[%clk
0:00:51.5]} 39. Kd4 {[%clk 0:00:39.4]} 39... Bd8 {[%clk 0:00:40.4]} 40. Kc5
{[%clk 0:00:35.9]} 40... Be7+ {[%clk 0:00:40.2]} 41. Kd4 {[%clk 0:00:36.2]}
41... Bd8 {[%clk 0:00:39.2]} 42. Bb4 {[%clk 0:00:35.6]} 42... Bc7 {[%clk
0:00:37.1]} 43. Bd2 {[%clk 0:00:29.4]} 43... Bd8 {[%clk 0:00:34.7]} 44. Bb4
{[%clk 0:00:26.1]} 44... Bh4 {[%clk 0:00:30.3]} 45. Bd2 {[%clk 0:00:21.7]} 45...
Bf2+ {[%clk 0:00:25.5]} 46. Kd3 {[%clk 0:00:20.8]} 46... Bg3 {[%clk 0:00:21.6]}
47. Kd4 {[%clk 0:00:20]} 47... Bh2 {[%clk 0:00:21.4]} 48. Bc3 {[%clk 0:00:19.9]}
48... Bg1+ {[%clk 0:00:20.4]} 49. Kd3 {[%clk 0:00:20.2]} 49... Bc5 {[%clk
0:00:19.3]} 50. Bd2 {[%clk 0:00:19.8]} 50... Bf2 {[%clk 0:00:18.2]} 51. Bc3
{[%clk 0:00:19.8]} 51... Bg3 {[%clk 0:00:18.2]} 52. Kd4 {[%clk 0:00:19.2]} 52...
Bh2 {[%clk 0:00:17.5]} 53. Kd3 {[%clk 0:00:19.7]} 53... h5 {[%clk 0:00:17.6]}
54. gxh5 {[%clk 0:00:19.3]} 54... gxh5 {[%clk 0:00:17.4]} 55. Bd4 {[%clk
0:00:19.7]} 55... Bg3 {[%clk 0:00:16.7]} 56. Bc3 {[%clk 0:00:19]} 56... Bf2
{[%clk 0:00:16.2]} 57. Bd4 {[%clk 0:00:19.1]} 57... Be1 {[%clk 0:00:16.4]} 58.
Bc3 {[%clk 0:00:19.1]} 58... Bf2 {[%clk 0:00:16.2]} 59. Bd4 {[%clk 0:00:19.3]}
59... Be1 {[%clk 0:00:16.3]} 60. Bc3 {[%clk 0:00:19.5]} 60... Bf2 {[%clk
0:00:16.5]} 1/2-1/2

[Event "*** SCC Grand Prix: Titled Tuesday Blitz"]
[Site "Chess.com"]
[Date "2020.06.23"]
[Round "6"]
[White "Skatchkov_V"]
[Black "goldaxe"]
[Result "1-0"]
[WhiteElo "2557"]
[BlackElo "2309"]
[TimeControl "180+1"]
[EndTime "11:07:02 PDT"]
[Termination "Skatchkov_V won by resignation"]

1. Nf3 {[%clk 0:03:00.6]} 1... Nf6 {[%clk 0:02:59.8]} 2. g3 {[%clk 0:03:00.4]}
2... g6 {[%clk 0:02:59.7]} 3. Bg2 {[%clk 0:03:00.4]} 3... Bg7 {[%clk 0:03:00.3]}
4. d4 {[%clk 0:03:00.1]} 4... d5 {[%clk 0:02:59.6]} 5. c4 {[%clk 0:02:59.6]}
5... c6 {[%clk 0:02:59.5]} 6. O-O {[%clk 0:03:00.1]} 6... O-O {[%clk 0:02:58.4]}
7. a4 {[%clk 0:03:00.4]} 7... Ne4 {[%clk 0:02:49.4]} 8. Nc3 {[%clk 0:02:53.4]}
8... Nxc3 {[%clk 0:02:46]} 9. bxc3 {[%clk 0:02:53.1]} 9... dxc4 {[%clk
0:02:43.1]} 10. e4 {[%clk 0:02:50.8]} 10... c5 {[%clk 0:02:38.3]} 11. Be3 {[%clk
0:02:42.1]} 11... cxd4 {[%clk 0:02:34.5]} 12. cxd4 {[%clk 0:02:41.4]} 12... Nc6
{[%clk 0:02:34.3]} 13. Rc1 {[%clk 0:02:32.9]} 13... Na5 {[%clk 0:02:33.7]} 14.
h3 {[%clk 0:02:30.1]} 14... f5 {[%clk 0:02:23.6]} 15. Re1 {[%clk 0:01:11.8]}
15... fxe4 {[%clk 0:02:11.2]} 16. Ng5 {[%clk 0:01:11.3]} 16... e5 {[%clk
0:01:59]} 17. d5 {[%clk 0:00:58.4]} 17... Nb3 {[%clk 0:01:49.9]} 18. Rxc4 {[%clk
0:00:56.9]} 18... Nd4 {[%clk 0:01:50.3]} 19. Bxe4 {[%clk 0:00:52.5]} 19... h6
{[%clk 0:01:37.3]} 20. Bxg6 {[%clk 0:00:39.5]} 20... hxg5 {[%clk 0:01:33]} 21.
Qh5 {[%clk 0:00:39.3]} 21... Nf3+ {[%clk 0:00:59.3]} 22. Kg2 {[%clk 0:00:38.6]}
22... Nxe1+ {[%clk 0:00:58.9]} 23. Kf1 {[%clk 0:00:36.8]} 23... Rf6 {[%clk
0:00:49.9]} 24. Qh7+ {[%clk 0:00:34.2]} 24... Kf8 {[%clk 0:00:49.5]} 25. Bc5+
{[%clk 0:00:34.6]} 25... Rd6 {[%clk 0:00:48.7]} 26. Kxe1 {[%clk 0:00:23.8]}
26... b6 {[%clk 0:00:41.7]} 27. Ba3 {[%clk 0:00:20.5]} 27... Bb7 {[%clk
0:00:36.6]} 28. Rc3 {[%clk 0:00:12.1]} 28... Bxd5 {[%clk 0:00:24.1]} 29. Rd3
{[%clk 0:00:12.5]} 29... Bg8 {[%clk 0:00:11.4]} 30. Rxd6 {[%clk 0:00:12.6]}
30... Qe7 {[%clk 0:00:02.1]} 31. Rd8+ {[%clk 0:00:12.4]} 31... Rxd8 {[%clk
0:00:01.8]} 32. Bxe7+ {[%clk 0:00:13.1]} 32... Kxe7 {[%clk 0:00:02.1]} 33. Qxg7+
{[%clk 0:00:14]} 33... Kd6 {[%clk 0:00:01.9]} 34. Bf7 {[%clk 0:00:12.2]} 34...
Bxf7 {[%clk 0:00:01.7]} 35. Qxf7 {[%clk 0:00:12.6]} 35... Rd7 {[%clk 0:00:02.6]}
36. Qf6+ {[%clk 0:00:13.1]} 36... Kd5 {[%clk 0:00:03]} 37. Qxg5 {[%clk
0:00:13.8]} 1-0

[Event "*** SCC Grand Prix: Titled Tuesday Blitz"]
[Site "Chess.com"]
[Date "2020.06.23"]
[Round "6"]
[White "Panterov"]
[Black "Unknown_IM"]
[Result "0-1"]
[WhiteElo "2156"]
[BlackElo "2379"]
[TimeControl "180+1"]
[EndTime "11:07:02 PDT"]
[Termination "Unknown_IM won by resignation"]

1. e4 {[%clk 0:03:00.9]} 1... e6 {[%clk 0:02:59.4]} 2. b3 {[%clk 0:02:59.4]}
2... d5 {[%clk 0:02:59.3]} 3. Bb2 {[%clk 0:02:59.6]} 3... dxe4 {[%clk
0:02:56.6]} 4. Nc3 {[%clk 0:02:59.4]} 4... Nf6 {[%clk 0:02:56.5]} 5. Qe2 {[%clk
0:02:57.3]} 5... Nc6 {[%clk 0:02:50.6]} 6. Nxe4 {[%clk 0:02:56.2]} 6... Be7
{[%clk 0:02:49.2]} 7. O-O-O {[%clk 0:02:55.3]} 7... Nxe4 {[%clk 0:02:44.8]} 8.
Qxe4 {[%clk 0:02:54.4]} 8... Bf6 {[%clk 0:02:43.4]} 9. d4 {[%clk 0:02:54.4]}
9... Ne7 {[%clk 0:02:41.4]} 10. h4 {[%clk 0:02:51.1]} 10... Nd5 {[%clk
0:02:33.6]} 11. g4 {[%clk 0:02:48.9]} 11... Bd7 {[%clk 0:02:31.1]} 12. g5 {[%clk
0:02:46.8]} 12... Be7 {[%clk 0:02:30.6]} 13. Bg2 {[%clk 0:02:46.5]} 13... Bc6
{[%clk 0:02:30]} 14. Qg4 {[%clk 0:02:08.9]} 14... Qd7 {[%clk 0:02:22]} 15. Ne2
{[%clk 0:02:07.9]} 15... O-O-O {[%clk 0:02:20.9]} 16. Rhe1 {[%clk 0:01:57]}
16... h6 {[%clk 0:02:10.5]} 17. Bxd5 {[%clk 0:01:47.2]} 17... Bxd5 {[%clk
0:01:56.6]} 18. f4 {[%clk 0:01:45.9]} 18... hxg5 {[%clk 0:01:47.3]} 19. fxg5
{[%clk 0:01:45.3]} 19... f5 {[%clk 0:01:40.5]} 20. gxf6 {[%clk 0:01:23.5]} 20...
Bxf6 {[%clk 0:01:39.6]} 21. h5 {[%clk 0:01:23.9]} 21... Qc6 {[%clk 0:01:13.3]}
22. Rf1 {[%clk 0:01:10.1]} 22... Be4 {[%clk 0:01:05]} 23. Nc3 {[%clk 0:01:09.9]}
23... Bf5 {[%clk 0:01:04.8]} 24. Rxf5 {[%clk 0:01:07.7]} 24... exf5 {[%clk
0:01:04.5]} 25. Qxf5+ {[%clk 0:01:08]} 25... Kb8 {[%clk 0:01:04.4]} 26. d5
{[%clk 0:01:01.7]} 26... Qd7 {[%clk 0:01:03.8]} 27. Qf3 {[%clk 0:00:58.8]} 27...
Qf7 {[%clk 0:00:57.3]} 28. Kb1 {[%clk 0:00:54.7]} 28... Qxh5 {[%clk 0:00:55.2]}
29. Qd3 {[%clk 0:00:50]} 29... Qe5 {[%clk 0:00:51.7]} 30. a4 {[%clk 0:00:44.7]}
30... Rd7 {[%clk 0:00:48.7]} 31. a5 {[%clk 0:00:44.9]} 31... Rhd8 {[%clk
0:00:47.3]} 32. a6 {[%clk 0:00:36.9]} 32... Qd6 {[%clk 0:00:40.5]} 33. axb7
{[%clk 0:00:33]} 33... Kxb7 {[%clk 0:00:41.4]} 34. Qf3 {[%clk 0:00:28.5]} 34...
Kb8 {[%clk 0:00:35.3]} 35. Nb5 {[%clk 0:00:27.6]} 35... Qb6 {[%clk 0:00:32.1]}
36. Bxf6 {[%clk 0:00:27.3]} 36... Qxf6 {[%clk 0:00:33]} 37. Nd4 {[%clk
0:00:26.5]} 37... Qxf3 {[%clk 0:00:32.2]} 38. Nxf3 {[%clk 0:00:24.5]} 38... Rxd5
{[%clk 0:00:33.1]} 39. Rg1 {[%clk 0:00:23.4]} 39... Rf5 {[%clk 0:00:32.4]} 40.
Nh4 {[%clk 0:00:21.4]} 40... Rf7 {[%clk 0:00:32.1]} 41. Kb2 {[%clk 0:00:20.6]}
41... Rg8 {[%clk 0:00:31.2]} 42. Rg6 {[%clk 0:00:19.3]} 42... Rf6 {[%clk
0:00:29.7]} 43. Rg5 {[%clk 0:00:19.6]} 43... g6 {[%clk 0:00:29.5]} 44. b4 {[%clk
0:00:17.7]} 44... Kc8 {[%clk 0:00:29.5]} 45. Kb3 {[%clk 0:00:17.2]} 45... Kd7
{[%clk 0:00:29.9]} 46. c3 {[%clk 0:00:17.7]} 46... Ke7 {[%clk 0:00:30.2]} 47.
Ng2 {[%clk 0:00:17.9]} 47... Rf5 {[%clk 0:00:30.2]} 48. Rg3 {[%clk 0:00:16.9]}
48... g5 {[%clk 0:00:30.4]} 49. Ne3 {[%clk 0:00:17.2]} 49... Re5 {[%clk
0:00:30.3]} 50. Nc4 {[%clk 0:00:16.9]} 50... Re4 {[%clk 0:00:30.2]} 51. Nd2
{[%clk 0:00:16.5]} 51... Rf4 {[%clk 0:00:29.5]} 52. Nc4 {[%clk 0:00:16.2]} 52...
g4 {[%clk 0:00:29.7]} 53. Ne5 {[%clk 0:00:16.1]} 53... Kf6 {[%clk 0:00:27.7]}
54. Nd7+ {[%clk 0:00:15.8]} 54... Ke6 {[%clk 0:00:27.8]} 55. Nc5+ {[%clk
0:00:15.6]} 55... Ke7 {[%clk 0:00:27.5]} 56. Re3+ {[%clk 0:00:14.5]} 56... Kf7
{[%clk 0:00:27.1]} 57. Ne6 {[%clk 0:00:14.1]} 57... Rf3 {[%clk 0:00:26.9]} 58.
Re4 {[%clk 0:00:14.4]} 58... g3 {[%clk 0:00:26.9]} 59. Nd4 {[%clk 0:00:10.6]}
0-1

[Event "*** SCC Grand Prix: Titled Tuesday Blitz"]
[Site "Chess.com"]
[Date "2020.06.23"]
[Round "6"]
[White "francyIM"]
[Black "andriipalchuk"]
[Result "0-1"]
[WhiteElo "2563"]
[BlackElo "2378"]
[TimeControl "180+1"]
[EndTime "11:07:03 PDT"]
[Termination "andriipalchuk won by checkmate"]

1. d4 {[%clk 0:03:00.9]} 1... Nf6 {[%clk 0:02:58.2]} 2. c4 {[%clk 0:02:55.2]}
2... e6 {[%clk 0:02:57.7]} 3. Nc3 {[%clk 0:02:50.6]} 3... Bb4 {[%clk 0:02:57.1]}
4. f3 {[%clk 0:02:50.4]} 4... c5 {[%clk 0:02:56.6]} 5. d5 {[%clk 0:02:50.6]}
5... d6 {[%clk 0:02:53.7]} 6. e4 {[%clk 0:02:48.3]} 6... b5 {[%clk 0:02:53.3]}
7. Bd2 {[%clk 0:02:48]} 7... Bxc3 {[%clk 0:02:45.2]} 8. Bxc3 {[%clk 0:02:48.9]}
8... b4 {[%clk 0:02:28.9]} 9. Bd2 {[%clk 0:02:48.3]} 9... O-O {[%clk 0:02:27.3]}
10. Be3 {[%clk 0:02:47.5]} 10... e5 {[%clk 0:02:23.9]} 11. Bd3 {[%clk
0:02:45.2]} 11... a5 {[%clk 0:02:17.1]} 12. Ne2 {[%clk 0:02:44]} 12... Nbd7
{[%clk 0:02:08.8]} 13. O-O {[%clk 0:02:43.5]} 13... g6 {[%clk 0:01:58.8]} 14.
Ng3 {[%clk 0:02:42.7]} 14... Ne8 {[%clk 0:01:50.9]} 15. f4 {[%clk 0:02:40]}
15... exf4 {[%clk 0:01:49.7]} 16. Bxf4 {[%clk 0:02:40.4]} 16... Qe7 {[%clk
0:01:50]} 17. Qd2 {[%clk 0:02:34.3]} 17... Ne5 {[%clk 0:01:47.9]} 18. Bg5 {[%clk
0:02:34.3]} 18... f6 {[%clk 0:01:47.7]} 19. Bh6 {[%clk 0:02:33.8]} 19... Ng7
{[%clk 0:01:46.3]} 20. h3 {[%clk 0:02:34]} 20... Bd7 {[%clk 0:01:43.9]} 21. Ne2
{[%clk 0:02:33.8]} 21... Rf7 {[%clk 0:01:40]} 22. Nf4 {[%clk 0:02:33.4]} 22...
Re8 {[%clk 0:01:25.6]} 23. Rae1 {[%clk 0:02:32.7]} 23... a4 {[%clk 0:01:24.8]}
24. Bb1 {[%clk 0:02:32.2]} 24... Nxc4 {[%clk 0:01:21.9]} 25. Qe2 {[%clk
0:02:31.8]} 25... Ne5 {[%clk 0:01:20.7]} 26. g4 {[%clk 0:02:31.6]} 26... f5
{[%clk 0:01:13.7]} 27. exf5 {[%clk 0:02:30.6]} 27... gxf5 {[%clk 0:01:12.7]} 28.
g5 {[%clk 0:02:27.2]} 28... Qd8 {[%clk 0:00:55.3]} 29. Kg2 {[%clk 0:02:20.6]}
29... Qb6 {[%clk 0:00:38]} 30. Qf2 {[%clk 0:02:15.8]} 30... Qb7 {[%clk
0:00:24.1]} 31. Kh2 {[%clk 0:02:15.8]} 31... Rfe7 {[%clk 0:00:20.6]} 32. Bxg7
{[%clk 0:02:15.6]} 32... Rxg7 {[%clk 0:00:19.5]} 33. Nh5 {[%clk 0:02:15.1]}
33... Rf8 {[%clk 0:00:19.3]} 34. Nxg7 {[%clk 0:02:13.9]} 34... Kxg7 {[%clk
0:00:20.2]} 35. Rd1 {[%clk 0:02:11.6]} 35... Qc8 {[%clk 0:00:11.3]} 36. Qh4
{[%clk 0:02:10.1]} 36... Qe8 {[%clk 0:00:11]} 37. Qh6+ {[%clk 0:02:09.1]} 37...
Kg8 {[%clk 0:00:11.2]} 38. Qh4 {[%clk 0:02:00.2]} 38... Ng6 {[%clk 0:00:09]} 39.
Qe1 {[%clk 0:01:56.7]} 39... Qxe1 {[%clk 0:00:07.8]} 40. Rdxe1 {[%clk 0:01:56]}
40... Ne5 {[%clk 0:00:08.7]} 41. Kg3 {[%clk 0:01:55.6]} 41... Kg7 {[%clk
0:00:08.2]} 42. h4 {[%clk 0:01:55.5]} 42... h6 {[%clk 0:00:07.3]} 43. Kf4 {[%clk
0:01:53.7]} 43... Ng6+ {[%clk 0:00:07]} 44. Kg3 {[%clk 0:01:53.6]} 44... Ne5
{[%clk 0:00:07.1]} 45. gxh6+ {[%clk 0:01:43]} 45... Kxh6 {[%clk 0:00:08]} 46.
Rg1 {[%clk 0:01:42.3]} 46... f4+ {[%clk 0:00:07.6]} 47. Kf2 {[%clk 0:01:41.6]}
47... f3 {[%clk 0:00:07]} 48. h5 {[%clk 0:01:27.6]} 48... Ng4+ {[%clk
0:00:03.1]} 49. Rxg4 {[%clk 0:01:23.1]} 49... Bxg4 {[%clk 0:00:04]} 50. Re7
{[%clk 0:01:21.6]} 50... Kxh5 {[%clk 0:00:04.2]} 51. Bd3 {[%clk 0:01:18.8]}
51... Kg5 {[%clk 0:00:03.8]} 52. Rg7+ {[%clk 0:01:14.1]} 52... Kf4 {[%clk
0:00:03.2]} 53. Re7 {[%clk 0:01:11.5]} 53... Bf5 {[%clk 0:00:03.1]} 54. Bb5
{[%clk 0:01:04.8]} 54... Be4 {[%clk 0:00:02.1]} 55. Re6 {[%clk 0:01:03]} 55...
Bxd5 {[%clk 0:00:01.6]} 56. Rxd6 {[%clk 0:01:03.3]} 56... Ke5 {[%clk 0:00:02.5]}
57. Rh6 {[%clk 0:01:02.6]} 57... a3 {[%clk 0:00:03.4]} 58. bxa3 {[%clk
0:01:01.3]} 58... bxa3 {[%clk 0:00:04.3]} 59. Ra6 {[%clk 0:01:00.4]} 59... Bxa2
{[%clk 0:00:03.7]} 60. Rxa3 {[%clk 0:00:59.6]} 60... Bd5 {[%clk 0:00:04.6]} 61.
Re3+ {[%clk 0:01:00]} 61... Kd6 {[%clk 0:00:04.5]} 62. Rd3 {[%clk 0:01:00]}
62... Rf4 {[%clk 0:00:04.8]} 63. Ba6 {[%clk 0:00:58.7]} 63... Rd4 {[%clk
0:00:05.1]} 64. Re3 {[%clk 0:00:54.4]} 64... c4 {[%clk 0:00:05]} 65. Rc3 {[%clk
0:00:52.6]} 65... Rd2+ {[%clk 0:00:04.8]} 66. Ke3 {[%clk 0:00:51]} 66... Re2+
{[%clk 0:00:04.9]} 67. Kd4 {[%clk 0:00:47.6]} 67... Re4# {[%clk 0:00:04.4]} 0-1